[Event "Live Chess"]
[Site "Chess.com"]
[Date "2023.05.21"]
[Round "-"]
[White "matt1979"]
[Black "Biranidun"]
[Result "0-1"]
[WhiteElo "1476"]
[BlackElo "2520"]
[TimeControl "300"]
[EndTime "20:29:02 PDT"]
[Termination "Biranidun won by resignation"]

1. f4 {[%clk 0:04:58.6]} 1... d5 {[%clk 0:04:58.5]} 2. e3 {[%clk 0:04:55.8]}
2... Nf6 {[%clk 0:04:57.3]} 3. Nf3 {[%clk 0:04:54.3]} 3... g6 {[%clk 0:04:57.2]}
4. Be2 {[%clk 0:04:51.3]} 4... Bg7 {[%clk 0:04:57.1]} 5. O-O {[%clk 0:04:50.1]}
5... O-O {[%clk 0:04:57]} 6. d3 {[%clk 0:04:48.9]} 6... c5 {[%clk 0:04:56.7]} 7.
Nc3 {[%clk 0:04:46.9]} 7... d4 {[%clk 0:04:55.5]} 8. Ne4 {[%clk 0:04:45.6]} 8...
Nd5 {[%clk 0:04:54.8]} 9. Nxc5 {[%clk 0:04:27.3]} 9... dxe3 {[%clk 0:04:54]} 10.
Ne4 {[%clk 0:04:20.9]} 10... Nxf4 {[%clk 0:04:47.9]} 11. Qe1 {[%clk 0:04:12.2]}
11... Qb6 {[%clk 0:04:45]} 12. Kh1 {[%clk 0:03:59.2]} 12... Nc6 {[%clk
0:04:43.9]} 13. Bd1 {[%clk 0:03:53.9]} 13... Nd5 {[%clk 0:04:37.6]} 14. c4
{[%clk 0:03:50.9]} 14... Ndb4 {[%clk 0:04:36.8]} 15. Bxe3 {[%clk 0:03:48.2]}
15... Nxd3 {[%clk 0:04:33.3]} 16. Qd2 {[%clk 0:03:43.7]} 16... Qxb2 {[%clk
0:04:30.9]} 17. Qxb2 {[%clk 0:03:39.4]} 17... Nxb2 {[%clk 0:04:28.6]} 18. Rb1
{[%clk 0:03:38.3]} 18... Nxc4 {[%clk 0:04:27.2]} 19. Bf2 {[%clk 0:03:27.5]}
19... Bf5 {[%clk 0:04:25.9]} 20. Ng3 {[%clk 0:03:25.8]} 20... Bxb1 {[%clk
0:04:24.7]} 0-1

[Event "Live Chess"]
[Site "Chess.com"]
[Date "2023.05.21"]
[Round "-"]
[White "chessfiction"]
[Black "BostonStrangler"]
[Result "1/2-1/2"]
[WhiteElo "2336"]
[BlackElo "2076"]
[TimeControl "300"]
[EndTime "20:29:20 PDT"]
[Termination "Game drawn by agreement"]

1. e4 {[%clk 0:04:58.8]} 1... c5 {[%clk 0:04:58.8]} 2. d4 {[%clk 0:04:58]} 2...
cxd4 {[%clk 0:04:56.4]} 3. c3 {[%clk 0:04:57.3]} 3... g6 {[%clk 0:04:55.1]} 4.
Nf3 {[%clk 0:04:56.2]} 4... Bg7 {[%clk 0:04:53.4]} 5. Bc4 {[%clk 0:04:55.3]}
5... Nc6 {[%clk 0:04:51.1]} 6. O-O {[%clk 0:04:52.4]} 6... e6 {[%clk 0:04:50]}
7. cxd4 {[%clk 0:04:50.2]} 7... d5 {[%clk 0:04:48.4]} 8. exd5 {[%clk 0:04:49.8]}
8... exd5 {[%clk 0:04:48]} 9. Re1+ {[%clk 0:04:48.9]} 9... Nge7 {[%clk
0:04:47.4]} 10. Bb5 {[%clk 0:04:48.2]} 10... O-O {[%clk 0:04:45.6]} 11. Bg5
{[%clk 0:04:46.7]} 11... f6 {[%clk 0:04:44.8]} 12. Bf4 {[%clk 0:04:45.3]} 12...
Qb6 {[%clk 0:04:37.9]} 13. Nc3 {[%clk 0:04:41.2]} 13... a6 {[%clk 0:04:36.8]}
14. Ba4 {[%clk 0:04:32.6]} 14... Qxb2 {[%clk 0:04:31.8]} 15. Re3 {[%clk
0:04:25.2]} 15... Nf5 {[%clk 0:04:23.6]} 16. Nxd5 {[%clk 0:04:18.1]} 16... Nxe3
{[%clk 0:04:17.3]} 17. fxe3 {[%clk 0:04:14.1]} 17... b5 {[%clk 0:03:45.5]} 18.
Bb3 {[%clk 0:04:11]} 18... Kh8 {[%clk 0:03:43.2]} 19. Bd6 {[%clk 0:04:06.8]}
19... Bf5 {[%clk 0:03:16]} 20. Bxf8 {[%clk 0:03:55.5]} 20... Rxf8 {[%clk
0:03:09]} 21. Qc1 {[%clk 0:03:48.4]} 21... Qxc1+ {[%clk 0:02:59.8]} 22. Rxc1
{[%clk 0:03:48.3]} 22... Na5 {[%clk 0:02:58.7]} 23. Rc7 {[%clk 0:03:45.4]} 23...
Nxb3 {[%clk 0:02:51.9]} 24. axb3 {[%clk 0:03:42.6]} 24... Be4 {[%clk 0:02:51.3]}
25. Nf4 {[%clk 0:03:39.3]} 25... Bh6 {[%clk 0:02:36.1]} 26. Re7 {[%clk
0:03:27.5]} 26... Bxf3 {[%clk 0:02:30.5]} 27. gxf3 {[%clk 0:03:27.4]} 27... Bxf4
{[%clk 0:02:29.3]} 28. exf4 {[%clk 0:03:27.2]} 28... Rd8 {[%clk 0:02:28.1]} 29.
Re6 {[%clk 0:03:25.5]} 29... Rxd4 {[%clk 0:02:20.8]} 30. Rxf6 {[%clk 0:03:24.3]}
30... a5 {[%clk 0:02:17.6]} 31. Ra6 {[%clk 0:03:21.6]} 31... a4 {[%clk 0:02:14]}
32. bxa4 {[%clk 0:03:19.1]} 32... bxa4 {[%clk 0:02:09.8]} 33. Kf2 {[%clk
0:03:15.3]} 33... Rxf4 {[%clk 0:02:07.4]} 34. Ra7 {[%clk 0:03:13.2]} 34... Rb4
{[%clk 0:02:04.3]} 35. Kg3 {[%clk 0:03:09.3]} 35... h6 {[%clk 0:01:53.4]} 36. h4
{[%clk 0:03:02.4]} 36... h5 {[%clk 0:01:51]} 37. Kh3 {[%clk 0:02:54.9]} 37...
Kg8 {[%clk 0:01:42.3]} 38. Kg3 {[%clk 0:02:53.9]} 38... Kf8 {[%clk 0:01:36.7]}
39. Kh3 {[%clk 0:02:45.4]} 39... Ke8 {[%clk 0:01:35.5]} 40. Kg3 {[%clk
0:02:44.1]} 40... Kd8 {[%clk 0:01:33.9]} 41. Ra6 {[%clk 0:02:38.8]} 41... a3
{[%clk 0:01:19.8]} 42. Rxa3 {[%clk 0:02:33.4]} 42... Ke7 {[%clk 0:01:17.5]} 43.
Ra6 {[%clk 0:02:31.4]} 43... Kf7 {[%clk 0:01:15.7]} 44. Ra7+ {[%clk 0:02:26.6]}
44... Kf6 {[%clk 0:01:14.1]} 45. Ra6+ {[%clk 0:02:26.5]} 45... Kf7 {[%clk
0:01:12.9]} 1/2-1/2

[Event "Live Chess"]
[Site "Chess.com"]
[Date "2023.05.21"]
[Round "-"]
[White "ramses-IIG"]
[Black "ViktorTheCoolBoy"]
[Result "0-1"]
[WhiteElo "870"]
[BlackElo "2501"]
[TimeControl "300"]
[EndTime "20:29:34 PDT"]
[Termination "ViktorTheCoolBoy won by resignation"]

1. e4 {[%clk 0:04:58.7]} 1... c5 {[%clk 0:04:57.8]} 2. d3 {[%clk 0:04:53.1]}
2... Nc6 {[%clk 0:04:56]} 3. Bd2 {[%clk 0:04:52.4]} 3... Nf6 {[%clk 0:04:53.1]}
4. Bc3 {[%clk 0:04:51.8]} 4... d5 {[%clk 0:04:51.4]} 5. Qd2 {[%clk 0:04:51.3]}
5... d4 {[%clk 0:04:49.3]} 6. Bxd4 {[%clk 0:04:36]} 6... cxd4 {[%clk 0:04:48.2]}
7. c3 {[%clk 0:04:34]} 7... e5 {[%clk 0:04:46.7]} 8. cxd4 {[%clk 0:04:31.5]}
8... Nxd4 {[%clk 0:04:45.7]} 9. Qd1 {[%clk 0:04:22.7]} 9... Be6 {[%clk
0:04:43.3]} 10. Qa4+ {[%clk 0:04:22.1]} 10... Qd7 {[%clk 0:04:41.7]} 11. Qd1
{[%clk 0:04:17.2]} 11... Rc8 {[%clk 0:04:40]} 12. b3 {[%clk 0:04:15]} 12... Bb4+
{[%clk 0:04:37.9]} 13. Nd2 {[%clk 0:04:11.1]} 13... Rc2 {[%clk 0:04:36.7]} 14.
Nf3 {[%clk 0:04:06.3]} 14... Nxf3+ {[%clk 0:04:35.2]} 15. Qxf3 {[%clk
0:04:04.9]} 15... Rxd2 {[%clk 0:04:33.1]} 16. Rd1 {[%clk 0:04:00.5]} 16... Rxd3+
{[%clk 0:04:29]} 0-1

[Event "Live Chess"]
[Site "Chess.com"]
[Date "2023.05.21"]
[Round "-"]
[White "worldchessleaguelive"]
[Black "Long1968"]
[Result "0-1"]
[WhiteElo "1343"]
[BlackElo "1065"]
[TimeControl "300"]
[EndTime "20:29:46 PDT"]
[Termination "Long1968 won by resignation"]

1. d4 {[%clk 0:04:56.4]} 1... e6 {[%clk 0:04:58.5]} 2. Bf4 {[%clk 0:04:54.6]}
2... d5 {[%clk 0:04:54.7]} 3. Nf3 {[%clk 0:04:53.1]} 3... c5 {[%clk 0:04:51.9]}
4. e3 {[%clk 0:04:52.3]} 4... Nc6 {[%clk 0:04:47.9]} 5. Bb5 {[%clk 0:04:49.7]}
5... Bd7 {[%clk 0:04:44.9]} 6. Bxc6 {[%clk 0:04:47.7]} 6... Bxc6 {[%clk
0:04:43]} 7. O-O {[%clk 0:04:47.3]} 7... Bd6 {[%clk 0:04:36.7]} 8. Bxd6 {[%clk
0:04:42]} 8... Qxd6 {[%clk 0:04:34]} 9. c3 {[%clk 0:04:38.3]} 9... cxd4 {[%clk
0:04:31.4]} 10. cxd4 {[%clk 0:04:32.7]} 10... Rc8 {[%clk 0:04:28]} 11. Nbd2
{[%clk 0:04:29.2]} 11... Nf6 {[%clk 0:04:18.7]} 12. Rc1 {[%clk 0:04:27.4]} 12...
O-O {[%clk 0:04:14.9]} 13. Nb3 {[%clk 0:04:14.4]} 13... Nd7 {[%clk 0:03:49.2]}
14. Ne5 {[%clk 0:04:11.8]} 14... Nxe5 {[%clk 0:03:44.7]} 15. dxe5 {[%clk
0:04:11]} 15... Qxe5 {[%clk 0:03:42.6]} 16. Nd4 {[%clk 0:04:09.4]} 16... a6
{[%clk 0:03:24.2]} 17. Qb3 {[%clk 0:04:02.8]} 17... Qd6 {[%clk 0:03:17.7]} 18.
Rc3 {[%clk 0:03:55.4]} 18... e5 {[%clk 0:02:56.6]} 19. Nxc6 {[%clk 0:03:52.3]}
19... Rxc6 {[%clk 0:02:53]} 20. Rfc1 {[%clk 0:03:48.9]} 20... Rb6 {[%clk
0:02:42.2]} 21. Qa4 {[%clk 0:03:39.6]} 21... Rxb2 {[%clk 0:02:23.9]} 22. Rc7
{[%clk 0:03:36.7]} 22... Rd8 {[%clk 0:01:47.7]} 23. Qh4 {[%clk 0:03:16.1]} 23...
f6 {[%clk 0:01:05.6]} 24. Qh5 {[%clk 0:03:10.9]} 24... Rf8 {[%clk 0:00:45]} 25.
Qg4 {[%clk 0:02:54.3]} 25... Qxc7 {[%clk 0:00:31.9]} 0-1

[Event "Live Chess"]
[Site "Chess.com"]
[Date "2023.05.21"]
[Round "-"]
[White "alanmike75"]
[Black "Singapourfeuj"]
[Result "0-1"]
[WhiteElo "1601"]
[BlackElo "2148"]
[TimeControl "300"]
[EndTime "20:30:26 PDT"]
[Termination "Singapourfeuj won by resignation"]

1. e4 {[%clk 0:04:57.6]} 1... d5 {[%clk 0:04:58.6]} 2. exd5 {[%clk 0:04:56.3]}
2... Nf6 {[%clk 0:04:57.4]} 3. d4 {[%clk 0:04:54.1]} 3... e6 {[%clk 0:04:55.4]}
4. dxe6 {[%clk 0:04:51.7]} 4... Bxe6 {[%clk 0:04:54.4]} 5. Nf3 {[%clk
0:04:50.5]} 5... Nc6 {[%clk 0:04:52.8]} 6. Be2 {[%clk 0:04:48.3]} 6... Bd6
{[%clk 0:04:50.8]} 7. O-O {[%clk 0:04:46.7]} 7... Qe7 {[%clk 0:04:49.5]} 8. c4
{[%clk 0:04:40]} 8... Bg4 {[%clk 0:04:47.5]} 9. d5 {[%clk 0:04:37.3]} 9... Bxf3
{[%clk 0:04:43.6]} 10. Bxf3 {[%clk 0:04:35.8]} 10... Ne5 {[%clk 0:04:42.6]} 11.
Be3 {[%clk 0:04:31.3]} 11... h5 {[%clk 0:04:37.4]} 12. Nd2 {[%clk 0:04:26.9]}
12... Nfg4 {[%clk 0:04:33.3]} 13. Bd4 {[%clk 0:04:19.9]} 13... O-O-O {[%clk
0:04:25.6]} 14. c5 {[%clk 0:04:15.2]} 14... Bxc5 {[%clk 0:04:21.3]} 15. Bxe5
{[%clk 0:04:03.4]} 15... Qxe5 {[%clk 0:04:20]} 16. Bxg4+ {[%clk 0:04:01.1]}
16... hxg4 {[%clk 0:04:19]} 17. Qxg4+ {[%clk 0:03:59.8]} 17... Kb8 {[%clk
0:04:18.1]} 18. Nf3 {[%clk 0:03:51]} 18... Qxd5 {[%clk 0:04:13.7]} 19. Rac1
{[%clk 0:03:40.8]} 19... Bd6 {[%clk 0:04:09.8]} 20. Rfd1 {[%clk 0:03:31.2]}
20... Qxa2 {[%clk 0:04:07.7]} 21. Qxg7 {[%clk 0:03:22.4]} 21... Rdg8 {[%clk
0:04:03.6]} 22. Qxf7 {[%clk 0:03:19.6]} 22... Qxf7 {[%clk 0:04:01.7]} 0-1

[Event "Live Chess"]
[Site "Chess.com"]
[Date "2023.05.21"]
[Round "-"]
[White "VovaOvchar1990"]
[Black "grillage"]
[Result "0-1"]
[WhiteElo "1233"]
[BlackElo "1809"]
[TimeControl "300"]
[EndTime "20:30:45 PDT"]
[Termination "grillage won by resignation"]

1. e4 {[%clk 0:04:56.9]} 1... d5 {[%clk 0:04:58.7]} 2. exd5 {[%clk 0:04:55.6]}
2... Qxd5 {[%clk 0:04:57.3]} 3. Nc3 {[%clk 0:04:55.1]} 3... Qd8 {[%clk
0:04:55.9]} 4. Bc4 {[%clk 0:04:53.2]} 4... Nf6 {[%clk 0:04:53.5]} 5. Nf3 {[%clk
0:04:51.5]} 5... a6 {[%clk 0:04:52.8]} 6. d3 {[%clk 0:04:50.4]} 6... Bg4 {[%clk
0:04:43.1]} 7. h3 {[%clk 0:04:48.8]} 7... Bxf3 {[%clk 0:04:41.6]} 8. Qxf3 {[%clk
0:04:47.5]} 8... Nc6 {[%clk 0:04:37.6]} 9. O-O {[%clk 0:04:44.3]} 9... e6 {[%clk
0:04:35.9]} 10. Bg5 {[%clk 0:04:41.5]} 10... Be7 {[%clk 0:04:34.6]} 11. Rfe1
{[%clk 0:04:37.7]} 11... O-O {[%clk 0:04:33.2]} 12. Qg3 {[%clk 0:04:33.1]} 12...
Qd7 {[%clk 0:03:48.1]} 13. Bh6 {[%clk 0:04:29.3]} 13... Ne8 {[%clk 0:03:32.5]}
14. f4 {[%clk 0:03:54]} 14... Nd4 {[%clk 0:03:15.9]} 15. Rac1 {[%clk 0:03:47.9]}
15... Nf5 {[%clk 0:03:14.4]} 16. Bg5 {[%clk 0:03:43.9]} 16... Nxg3 {[%clk
0:03:11.7]} 0-1

[Event "Live Chess"]
[Site "Chess.com"]
[Date "2023.05.21"]
[Round "-"]
[White "Conradical12"]
[Black "matt1979"]
[Result "1-0"]
[WhiteElo "1637"]
[BlackElo "1471"]
[TimeControl "300"]
[EndTime "20:31:12 PDT"]
[Termination "Conradical12 won by resignation"]

1. e4 {[%clk 0:04:57.7]} 1... d6 {[%clk 0:04:56.6]} 2. Nf3 {[%clk 0:04:57.1]}
2... Nf6 {[%clk 0:04:52.6]} 3. Nc3 {[%clk 0:04:56.6]} 3... e5 {[%clk 0:04:47.3]}
4. d3 {[%clk 0:04:55]} 4... Be7 {[%clk 0:04:42]} 5. Be3 {[%clk 0:04:52.8]} 5...
O-O {[%clk 0:04:40.4]} 6. Qd2 {[%clk 0:04:51.4]} 6... Bg4 {[%clk 0:04:33.2]} 7.
Be2 {[%clk 0:04:49.6]} 7... Bxf3 {[%clk 0:04:29.6]} 8. gxf3 {[%clk 0:04:47.9]}
8... Nbd7 {[%clk 0:04:24.3]} 9. O-O-O {[%clk 0:04:45.5]} 9... c6 {[%clk
0:04:22.1]} 10. Rdg1 {[%clk 0:04:45]} 10... Ne8 {[%clk 0:04:04.8]} 11. h4 {[%clk
0:04:44.3]} 11... Bxh4 {[%clk 0:03:54.1]} 12. Bh6 {[%clk 0:04:40.6]} 12... Bf6
{[%clk 0:03:47.6]} 13. Bxg7 {[%clk 0:04:37.1]} 13... Nxg7 {[%clk 0:03:40.3]} 14.
Qh6 {[%clk 0:04:32]} 1-0

[Event "Live Chess"]
[Site "Chess.com"]
[Date "2023.05.21"]
[Round "-"]
[White "garyjc"]
[Black "manthanit"]
[Result "0-1"]
[WhiteElo "1042"]
[BlackElo "1082"]
[TimeControl "300"]
[EndTime "20:33:25 PDT"]
[Termination "manthanit won by resignation"]

1. e4 {[%clk 0:04:57.6]} 1... e6 {[%clk 0:04:57]} 2. d4 {[%clk 0:04:56.3]} 2...
d6 {[%clk 0:04:56.5]} 3. Nf3 {[%clk 0:04:51.6]} 3... g6 {[%clk 0:04:56.1]} 4.
Bg5 {[%clk 0:04:45.3]} 4... Ne7 {[%clk 0:04:52.8]} 5. e5 {[%clk 0:04:38.3]} 5...
dxe5 {[%clk 0:04:49.8]} 6. Nxe5 {[%clk 0:04:34.2]} 6... Bg7 {[%clk 0:04:47.4]}
7. Nc3 {[%clk 0:04:22.3]} 7... O-O {[%clk 0:04:46]} 8. Bd3 {[%clk 0:03:59.6]}
8... a6 {[%clk 0:04:43.9]} 9. Qd2 {[%clk 0:03:58.3]} 9... Re8 {[%clk 0:04:39.9]}
10. Bh6 {[%clk 0:03:55.6]} 10... Bh8 {[%clk 0:04:38.9]} 11. O-O-O {[%clk
0:03:38.7]} 11... Nf5 {[%clk 0:04:37.7]} 12. Bxf5 {[%clk 0:03:22.4]} 12... exf5
{[%clk 0:04:33.5]} 13. Rde1 {[%clk 0:03:14.5]} 13... Be6 {[%clk 0:04:31.9]} 14.
Kb1 {[%clk 0:03:07.7]} 14... Nd7 {[%clk 0:04:29.3]} 15. h4 {[%clk 0:02:56.9]}
15... Nxe5 {[%clk 0:04:27.7]} 16. Rxe5 {[%clk 0:02:36.9]} 16... Bxe5 {[%clk
0:04:24.7]} 17. Bg5 {[%clk 0:02:27]} 17... Bf6 {[%clk 0:04:21.9]} 18. Bxf6
{[%clk 0:02:25.1]} 18... Qxf6 {[%clk 0:04:20.9]} 19. h5 {[%clk 0:02:17.9]} 19...
Rad8 {[%clk 0:04:17.2]} 20. hxg6 {[%clk 0:02:16.1]} 20... fxg6 {[%clk
0:04:16.2]} 21. Qh6 {[%clk 0:02:13]} 21... Qg7 {[%clk 0:04:14.1]} 22. Qg5 {[%clk
0:02:09.4]} 22... Rxd4 {[%clk 0:04:08.7]} 23. Qe3 {[%clk 0:01:44.6]} 23... Rd7
{[%clk 0:04:05.4]} 24. Nd5 {[%clk 0:01:37.6]} 24... Rxd5 {[%clk 0:03:59.5]} 0-1

[Event "Live Chess"]
[Site "Chess.com"]
[Date "2023.05.21"]
[Round "-"]
[White "grillage"]
[Black "Conradical12"]
[Result "1-0"]
[WhiteElo "1813"]
[BlackElo "1633"]
[TimeControl "300"]
[EndTime "20:34:07 PDT"]
[Termination "grillage won by resignation"]

1. d4 {[%clk 0:04:57.8]} 1... d5 {[%clk 0:04:52.1]} 2. Nc3 {[%clk 0:04:54.3]}
2... Nf6 {[%clk 0:04:49.4]} 3. Bf4 {[%clk 0:04:53.2]} 3... Nc6 {[%clk
0:04:47.2]} 4. Nb5 {[%clk 0:04:49.9]} 4... e5 {[%clk 0:04:43.8]} 5. dxe5 {[%clk
0:04:44.2]} 5... Nh5 {[%clk 0:04:41.8]} 6. Bg3 {[%clk 0:03:58.5]} 6... Nxg3
{[%clk 0:04:36.8]} 7. hxg3 {[%clk 0:03:57.5]} 7... Nxe5 {[%clk 0:04:35]} 8. Qxd5
{[%clk 0:03:54.9]} 8... Qxd5 {[%clk 0:04:27.2]} 9. Nxc7+ {[%clk 0:03:53.8]} 9...
Kd8 {[%clk 0:04:25]} 10. Nxd5 {[%clk 0:03:52.9]} 10... Bd7 {[%clk 0:04:23.1]}
11. O-O-O {[%clk 0:03:51.4]} 11... Rc8 {[%clk 0:04:17.3]} 12. Nf3 {[%clk
0:03:41.6]} 12... Nc4 {[%clk 0:04:13.6]} 13. e4 {[%clk 0:03:36.3]} 13... g6
{[%clk 0:04:05.2]} 14. Bxc4 {[%clk 0:03:33.9]} 14... Rxc4 {[%clk 0:04:00.1]} 15.
Ne5 {[%clk 0:03:32.5]} 15... Rxe4 {[%clk 0:03:52.4]} 16. Nxf7+ {[%clk
0:03:30.4]} 1-0

[Event "Live Chess"]
[Site "Chess.com"]
[Date "2023.05.21"]
[Round "-"]
[White "ramses-IIG"]
[Black "smoggyrabbit"]
[Result "0-1"]
[WhiteElo "870"]
[BlackElo "1756"]
[TimeControl "300"]
[EndTime "20:34:43 PDT"]
[Termination "smoggyrabbit won by resignation"]

1. e4 {[%clk 0:04:54.5]} 1... e6 {[%clk 0:04:59.1]} 2. Nf3 {[%clk 0:04:54.4]}
2... d5 {[%clk 0:04:58.1]} 3. e5 {[%clk 0:04:52.9]} 3... c5 {[%clk 0:04:56.9]}
4. d4 {[%clk 0:04:52.6]} 4... Nc6 {[%clk 0:04:55.4]} 5. c3 {[%clk 0:04:51.7]}
5... Bd7 {[%clk 0:04:54.7]} 6. Bb5 {[%clk 0:04:48.8]} 6... Nxe5 {[%clk 0:04:52]}
7. Bxd7+ {[%clk 0:04:45.4]} 7... Nxd7 {[%clk 0:04:50.7]} 8. Qb3 {[%clk
0:04:37.9]} 8... Qc7 {[%clk 0:04:35.7]} 9. O-O {[%clk 0:04:30.3]} 9... Ngf6
{[%clk 0:04:32.6]} 10. Nbd2 {[%clk 0:04:26.6]} 10... Be7 {[%clk 0:04:25.7]} 11.
c4 {[%clk 0:04:17]} 11... O-O {[%clk 0:04:18.6]} 12. cxd5 {[%clk 0:04:08.8]}
12... exd5 {[%clk 0:04:12]} 13. dxc5 {[%clk 0:04:01.9]} 13... Bxc5 {[%clk
0:04:00.5]} 14. Re1 {[%clk 0:03:55]} 14... Rfe8 {[%clk 0:03:57.4]} 15. Rxe8+
{[%clk 0:03:52.2]} 15... Rxe8 {[%clk 0:03:57.3]} 16. Qb5 {[%clk 0:03:44]} 16...
a6 {[%clk 0:03:43.3]} 17. Qd3 {[%clk 0:03:36.5]} 17... Qb6 {[%clk 0:03:28.9]}
18. Qf1 {[%clk 0:03:07.7]} 18... Ng4 {[%clk 0:03:17.8]} 19. Nb3 {[%clk
0:02:57.1]} 19... Bxf2+ {[%clk 0:03:11.6]} 20. Kh1 {[%clk 0:02:55]} 20... Nde5
{[%clk 0:02:33.3]} 21. Nxe5 {[%clk 0:02:41]} 21... Rxe5 {[%clk 0:02:33.2]} 22.
h3 {[%clk 0:02:39.6]} 22... Re1 {[%clk 0:02:24.1]} 0-1

[Event "Live Chess"]
[Site "Chess.com"]
[Date "2023.05.21"]
[Round "-"]
[White "Pablo_dmp"]
[Black "Doge_Dandolo"]
[Result "0-1"]
[WhiteElo "1852"]
[BlackElo "1915"]
[TimeControl "300"]
[EndTime "20:34:55 PDT"]
[Termination "Doge_Dandolo won by resignation"]

1. e4 {[%clk 0:04:57.1]} 1... c6 {[%clk 0:04:58.5]} 2. d4 {[%clk 0:04:55.5]}
2... d5 {[%clk 0:04:57.7]} 3. e5 {[%clk 0:04:54.8]} 3... Bf5 {[%clk 0:04:56.1]}
4. h4 {[%clk 0:04:53]} 4... h5 {[%clk 0:04:50.4]} 5. Bg5 {[%clk 0:04:50.9]} 5...
Qb6 {[%clk 0:04:48.6]} 6. Bd3 {[%clk 0:04:48.3]} 6... Bxd3 {[%clk 0:04:46.4]} 7.
Qxd3 {[%clk 0:04:46.5]} 7... e6 {[%clk 0:04:42.7]} 8. Nd2 {[%clk 0:04:34.7]}
8... c5 {[%clk 0:04:40.9]} 9. c4 {[%clk 0:04:28.2]} 9... dxc4 {[%clk 0:04:35.8]}
10. Qxc4 {[%clk 0:04:20.4]} 10... Nd7 {[%clk 0:04:32.7]} 11. b3 {[%clk
0:04:11.3]} 11... Ne7 {[%clk 0:04:27.5]} 12. Be3 {[%clk 0:04:09]} 12... cxd4
{[%clk 0:04:18.3]} 13. Bxd4 {[%clk 0:04:08.9]} 13... Qa5 {[%clk 0:04:17]} 14.
Bc3 {[%clk 0:04:04.4]} 14... Qb6 {[%clk 0:04:11.7]} 15. Bd4 {[%clk 0:04:02.9]}
15... Qa5 {[%clk 0:04:09.3]} 16. Bc3 {[%clk 0:04:01.3]} 16... Qd8 {[%clk
0:04:07.4]} 17. Ngf3 {[%clk 0:03:58.9]} 17... Rc8 {[%clk 0:04:05.6]} 18. Qd3
{[%clk 0:03:55.7]} 18... Nc6 {[%clk 0:04:01.3]} 19. Rd1 {[%clk 0:03:46.9]} 19...
Be7 {[%clk 0:04:00]} 20. g3 {[%clk 0:03:42.6]} 20... O-O {[%clk 0:03:56.4]} 21.
O-O {[%clk 0:03:40.6]} 21... Qc7 {[%clk 0:03:51.3]} 22. Nc4 {[%clk 0:03:30.9]}
22... Rfd8 {[%clk 0:03:48.5]} 23. Qe4 {[%clk 0:03:26.5]} 23... Nf8 {[%clk
0:03:20.6]} 24. a4 {[%clk 0:02:53.8]} 24... b6 {[%clk 0:03:17.3]} 25. Bb2 {[%clk
0:02:48.1]} 25... a6 {[%clk 0:03:15]} 26. Qe3 {[%clk 0:02:42.2]} 26... Bc5
{[%clk 0:03:08.6]} 27. Qg5 {[%clk 0:02:40.2]} 27... g6 {[%clk 0:03:04.1]} 28.
Qh6 {[%clk 0:02:20.6]} 28... Nh7 {[%clk 0:02:47.9]} 29. Ng5 {[%clk 0:02:09.4]}
29... Nxg5 {[%clk 0:02:45.3]} 30. Qxg5 {[%clk 0:02:09.3]} 30... Be7 {[%clk
0:02:41.6]} 31. Qe3 {[%clk 0:02:01.2]} 31... Bc5 {[%clk 0:02:37.3]} 32. Qe4
{[%clk 0:01:46]} 32... b5 {[%clk 0:02:33.2]} 33. axb5 {[%clk 0:01:43]} 33...
axb5 {[%clk 0:02:31.9]} 34. Nd6 {[%clk 0:01:36.8]} 34... Ra8 {[%clk 0:02:18.2]}
35. Qf4 {[%clk 0:01:34.2]} 35... Ra7 {[%clk 0:02:12.4]} 36. Rc1 {[%clk
0:01:18.9]} 36... Bxd6 {[%clk 0:02:08]} 37. exd6 {[%clk 0:01:08.8]} 37... Qxd6
{[%clk 0:02:03.1]} 38. Qf6 {[%clk 0:01:06.1]} 38... e5 {[%clk 0:01:58.9]} 39.
Qg7+ {[%clk 0:01:03.2]} 39... Kxg7 {[%clk 0:01:56.9]} 40. f4 {[%clk 0:01:00.8]}
40... Ra2 {[%clk 0:01:47.3]} 41. Rxc6 {[%clk 0:00:52.4]} 41... Qxc6 {[%clk
0:01:41.4]} 42. Bxe5+ {[%clk 0:00:49.4]} 42... Kg8 {[%clk 0:01:39.4]} 0-1

[Event "Live Chess"]
[Site "Chess.com"]
[Date "2023.05.21"]
[Round "-"]
[White "LutherSullivan"]
[Black "yarek"]
[Result "1-0"]
[WhiteElo "2206"]
[BlackElo "1883"]
[TimeControl "300"]
[EndTime "20:35:09 PDT"]
[Termination "LutherSullivan won by resignation"]

1. e4 {[%clk 0:04:55.6]} 1... g6 {[%clk 0:04:59.9]} 2. d4 {[%clk 0:04:54.2]}
2... Bg7 {[%clk 0:04:58.2]} 3. Be2 {[%clk 0:04:50.9]} 3... c6 {[%clk 0:04:57.2]}
4. h4 {[%clk 0:04:48.9]} 4... h5 {[%clk 0:04:54.9]} 5. c3 {[%clk 0:04:44.1]}
5... d5 {[%clk 0:04:53.2]} 6. e5 {[%clk 0:04:42.9]} 6... Bf5 {[%clk 0:04:50.8]}
7. Nd2 {[%clk 0:04:39.1]} 7... Nh6 {[%clk 0:04:48.3]} 8. Ngf3 {[%clk 0:04:35.3]}
8... e6 {[%clk 0:04:46.8]} 9. Ng5 {[%clk 0:04:31.6]} 9... Nd7 {[%clk 0:04:41]}
10. f3 {[%clk 0:04:27.2]} 10... c5 {[%clk 0:04:35.7]} 11. g4 {[%clk 0:04:24.3]}
11... hxg4 {[%clk 0:04:33.7]} 12. fxg4 {[%clk 0:04:22.9]} 12... cxd4 {[%clk
0:04:13.5]} 13. cxd4 {[%clk 0:04:14.9]} 13... Qb6 {[%clk 0:04:04.1]} 14. gxf5
{[%clk 0:04:09.9]} 14... Nxf5 {[%clk 0:03:59.1]} 15. Ndf3 {[%clk 0:04:06.1]}
15... Ng3 {[%clk 0:03:32.1]} 16. Rg1 {[%clk 0:03:59.5]} 16... Ne4 {[%clk
0:03:15.9]} 17. Qb3 {[%clk 0:03:47.5]} 17... Qa5+ {[%clk 0:02:59.3]} 18. Kf1
{[%clk 0:03:21.6]} 18... Rc8 {[%clk 0:02:39.6]} 19. Be3 {[%clk 0:03:14.9]} 19...
Nb6 {[%clk 0:02:33.5]} 20. Qb5+ {[%clk 0:02:57.3]} 20... Qxb5 {[%clk 0:02:30.3]}
21. Bxb5+ {[%clk 0:02:56.8]} 21... Ke7 {[%clk 0:02:27.2]} 22. Nxe4 {[%clk
0:02:41]} 22... dxe4 {[%clk 0:02:24.8]} 23. Bg5+ {[%clk 0:02:37.5]} 23... f6
{[%clk 0:02:22.1]} 24. exf6+ {[%clk 0:02:36.1]} 24... Bxf6 {[%clk 0:02:20.8]}
25. Ne5 {[%clk 0:02:34.9]} 25... Rh5 {[%clk 0:02:01.9]} 26. Nxg6+ {[%clk
0:02:27.9]} 26... Kf7 {[%clk 0:01:57.4]} 27. Be2 {[%clk 0:02:20.3]} 27... Rh7
{[%clk 0:01:47.7]} 28. h5 {[%clk 0:01:41.5]} 28... Nd5 {[%clk 0:01:36.5]} 29.
Rc1 {[%clk 0:01:23.9]} 29... Bxd4 {[%clk 0:01:29.6]} 30. Rxc8 {[%clk 0:01:20.3]}
1-0